Cogmind - Beta 9.4 @@@ ROGUE MODE // 2020.02.08 @ 23:31:34 Player: Decinym Result: Destroyed by as-36813 with Assembled Heavy Rifle Performance ------------- Evolutions (0) 0 Regions Visited (3) 600 Robots Destroyed (25) 125 Value Destroyed (521) 521 Prototype IDs (22) 440 Alien Tech Used (0) 0 Bonus (-114) -114 TOTAL SCORE: 1572 Bonus ------- Aligned with FarCom 300 Friendly Fire -414 Cogmind --------- Core Integrity 0/250 Matter 242/300 Energy 100/100 System Corruption 1% Temperature Cool (0) Movement Walking (150) Ox1 Location -10/Exiles Parts ------- > --- POWER (1) -------- (None) > --- PROPULSION (2) --- Aluminum Leg Aluminum Leg > --- UTILITY (2) ------ Large Storage Unit > --- WEAPON (2) ------- Rocket Launcher Longsword +1 > --- INVENTORY (10) --- Light Nuclear Core Light Nuclear Core Aluminum Leg Potential Leg Potential Leg Medium Storage Unit Large Storage Unit Light Assault Rifle Peak State ------------ > --- POWER ------------ Light Nuclear Core > --- PROPULSION ------- Aluminum Leg Aluminum Leg > --- UTILITY ---------- Improved Heat Sink Large Storage Unit > --- WEAPON ----------- Beam Cannon Longsword +1 > --- INVENTORY -------- Light Nuclear Core Light Nuclear Core Aluminum Leg Aluminum Leg Potential Leg Potential Leg Medium Storage Unit Large Storage Unit Light Assault Rifle Rocket Launcher [Rating: 21] Favorites ----------- Power Light Nuclear Core Engine Ion Engine Power Core Light Nuclear Core Propulsion Aluminum Leg Leg Aluminum Leg Utility Improved Heat Sink Device Improved Heat Sink Storage Large Storage Unit Weapon Beam Cannon Energy Gun Medium Laser Energy Cannon Beam Cannon Ballistic Gun Light Assault Rifle Launcher Rocket Launcher Slashing Weapon Longsword +1 Build | -11 -10 -10 -10 ------- Run | Scr Mat Min Exi Slots Evolved . | . . . . Power . | . . . . Propulsion . | . . . . Utility . | . . . . Weapon . | . . . . Parts Attached 21 | . 14 4 3 Power 2 | . 1 1 . Engine 1 | . 1 . . Core 1 | . . 1 . Reactor . | . . . . Propulsion 4 | . 2 1 1 Treads . | . . . . Leg 4 | . 2 1 1 Wheel . | . . . . Hover . | . . . . Flight . | . . . . Utility 4 | . 4 . . Device 2 | . 2 . . Storage 2 | . 2 . . Processor . | . . . . Hackware . | . . . . Protection . | . . . . Artifact . | . . . . Weapon 11 | . 7 2 2 Energy Gun 4 | . 4 . . Energy Cannon 3 | . 2 1 . Ballistic Gun 2 | . 1 1 . Ballistic Cannon . | . . . . Launcher 1 | . . . 1 Special Weapon . | . . . . Impact Weapon . | . . . . Slashing Weapon 1 | . . . 1 Piercing Weapon . | . . . . Special Melee Weapon . | . . . . Unidentified Prototypes . | . . . . Parts Lost 11 | . 5 3 3 Power 2 | . 1 . 1 Propulsion 3 | . 1 1 1 Utility 1 | . . . 1 Weapon 5 | . 3 2 . Highest Loss Streak 4 | . 4 2 3 Average Slot Usage (%) 93 | . 91 87 99 Engine 6 | . 13 8 . Core 7 | . . 5 13 Leg 25 | . 27 19 28 Device 12 | . 8 14 13 Storage 14 | . 14 14 14 Energy Gun 3 | . 13 . . Energy Cannon 15 | . 9 23 13 Ballistic Gun 7 | . 3 1 13 Naked Turns . | . . . . Heaviest Build 28 | 11 28 28 26 Greatest Support 20 | 20 20 20 20 Greatest Overweight (x) 2 | . 1 2 1 Average Overweight (x) . | . . 1 1 Largest Inventory Capacity 14 | . 14 10 10 Average Capacity 8 | . 6 10 10 Most Carried 10 | . 6 10 10 Average Carried 7 | . 4 8 9 Final Capacity 10 | 6 10 10 10 Final Carried 10 | 6 6 10 8 Class Distribution -------------------- 60% | Scavenger-Mutant 39% | Mutant Dominant Class ---------------- Mutant | -10/Materials Mutant | -10/Mines Scavenger-Mutant | -10/Exiles Resources | -11 -10 -10 -10 ----------- Run | Scr Mat Min Exi Matter Collected 372 | 200 122 50 . Remotely . | . . . . Salvage Created 724 | . 474 222 28 Parts 41 | . 31 10 . Haulers Intercepted 2 | . 2 . . Recyclers Shooed 2 | . 2 . . Parts Field Recycled . | . . . . Retrieved Matter . | . . . . Parts Self-Destructed . | . . . . Prevented . | . . . . Kills | -11 -10 -10 -10 ------- Run | Scr Mat Min Exi Combat Hostiles Destroyed 21 | . 11 7 3 Guns 11 | . 11 . . Cannons 7 | . . 7 . AOE 3 | . . . 3 Classes Destroyed 6 | . 5 . 1 Hauler 2 | . 2 . . Recycler 1 | . 1 . . Operator 1 | . 1 . . Swarmer 9 | . 6 3 . Grunt 9 | . 5 4 . Assembled 3 | . . . 3 Best Kill Streak 4 | . 4 3 3 Combat Bots Only 4 | . 4 3 3 Max Kills in Single Turn 2 | . 2 1 1 Gunslinging 1 | . 1 . . Exploded 1 | . . . 1 Melee . | . . . . Uniques/NPCs Destroyed . | . . . . Combat | -11 -10 -10 -10 -------- Run | Scr Mat Min Exi Damage Taken 1293 | . 742 313 238 Core 264 | . 153 45 66 Absorbed by Shields . | . . . . Core Remaining (%) 100 | 100 . . . Volleys Fired 86 | . 65 18 3 Largest 2 | . 2 2 1 Hottest 120 | . 120 120 33 Shots Fired 138 | . 101 34 3 Gun 93 | . 93 . . Cannon 42 | . 8 34 . Launcher 3 | . . . 3 Special . | . . . . Kinetic 22 | . 22 . . Thermal 111 | . 77 34 . Explosive 3 | . . . 3 Electromagnetic 2 | . 2 . . Robot Hit Streak 8 | . 8 5 4 Robot Miss Streak 4 | . 4 4 . Penetration Max . | . . . . Secondary Targets 2 | . 2 . . Max Gunslinging Chain 1 | . 1 . . Shots Hit Robots 91 | . 66 21 4 Core Hits 43 | . 25 9 9 Critical Hits 1 | . 1 . . Critical Kills . | . . . . Critical Parts Destroyed 1 | . 1 . . Melee Attacks 3 | . . . 3 Impact . | . . . . Slashing 3 | . . . 3 Piercing . | . . . . Sneak Attacks 1 | . . . 1 Combat Hostiles . | . . . . Follow-up Attacks . | . . . . Damage Inflicted 1758 | . 781 404 573 Guns 710 | . 710 . . Cannons 475 | . 71 404 . Explosions 361 | . . . 361 Melee 212 | . . . 212 Ramming . | . . . . Kinetic 109 | . 109 . . Thermal 1063 | . 659 404 . Explosive 170 | . . . 170 Electromagnetic 204 | . 13 . 191 Impact . | . . . . Slashing 212 | . . . 212 Piercing . | . . . . Highest Corruption 1 | . 1 1 1 Average Corruption 1 | . 1 1 1 Corruption Purged . | . . . . Effects 5 | . . 2 3 Message Errors 2 | . . 1 1 Energy Discharges 1 | . . . 1 Data Loss (minor) 1 | . . . 1 Targeting Errors 1 | . . 1 . Overload Shots . | . . . . Overflow Damage 1 | . . . 1 Projectiles . | . . . . Explosions 1 | . . . 1 Melee . | . . . . Knockbacks . | . . . . Impact . | . . . . Kinetic . | . . . . Secondary . | . . . . Self-Inflicted Damage . | . . . . Shots . | . . . . Rammed . | . . . . Targets Rammed . | . . . . Kicked . | . . . . Crushed . | . . . . Highest Temperature 310 | . 310 175 . Average Temperature 97 | . 105 75 . Received Heat Transfer 345 | . 237 108 . Effects 2 | . 2 . . Interference 2 | . 2 . . Siege Activations . | . . . . Robots Corrupted . | . . . . Combat Hostiles . | . . . . Parts Fried . | . . . . Impact Corruptions . | . . . . Robots Melted . | . . . . Combat Hostiles . | . . . . Parts Melted 4 | . 2 2 . Heat Transferred 2531 | . 1680 851 . Parts Sabotaged . | . . . . Parts Stolen . | . . . . Parts Stripped . | . . . . Power Chain Reactions . | . . . . Missiles Intercepted . | . . . . Alert | -11 -10 -10 -10 ------- Run | Scr Mat Min Exi Peak Influence 289 | . 289 252 . Average Influence 149 | . 149 149 . Maximum Alert Level 1 | . 1 1 . Low Security (%) 74 | . 66 83 . Level 1 25 | . 33 16 . Level 2 . | . . . . Level 3 . | . . . . Level 4 . | . . . . Level 5 . | . . . . High Security . | . . . . Max Security . | . . . . Squads Dispatched 1 | . 1 . . Investigation 1 | . 1 . . Extermination . | . . . . Reinforcement . | . . . . Assault . | . . . . Garrison . | . . . . Intercept . | . . . . Construction Impeded . | . . . . Haulers Reinforced . | . . . . Stealth | -11 -10 -10 -10 --------- Run | Scr Mat Min Exi Distress Signals 1 | . 1 . . Communications Jammed . | . . . . Distress Signals . | . . . . Times Spotted 33 | . 21 7 5 Peak Tracking Total 8 | . 6 3 8 Tactical Retreats 2 | . 2 . . Traps | -11 -10 -10 -10 ------- Run | Scr Mat Min Exi Traps Triggered 3 | . 2 . 1 Indirectly 1 | . . . 1 Trap Hack Attempts . | . . . . Triggered . | . . . . Disarmed . | . . . . Reprogrammed . | . . . . Reused 2 | . . . 2 Traps Extracted . | . . . . Installed 3 | . . . 3 Triggered . | . . . . Machines | -11 -10 -10 -10 ---------- Run | Scr Mat Min Exi Machines Disabled 9 | . 3 3 3 Max in Single Turn 3 | . 1 1 3 Machines Sabotaged . | . . . . Garrisons Compromised . | . . . . Overloaded Fab Kills . | . . . . Fab Network Shutdowns . | . . . . Hacking | -11 -10 -10 -10 --------- Run | Scr Mat Min Exi Machines Accessed 5 | . 2 1 2 Terminals 3 | . 2 1 . Fabricators . | . . . . Repair Stations . | . . . . Recycling Units . | . . . . Scanalyzers . | . . . . Garrison Access . | . . . . Total Hacks 13 | . 5 3 5 Successful 8 | . 1 2 5 Failed 5 | . 4 1 . Catastrophic . | . . . . Database Lockouts . | . . . . Manual 9 | . 5 3 1 Terminals 8 | . 5 3 . Fabricators . | . . . . Repair Stations . | . . . . Recycling Units . | . . . . Scanalyzers . | . . . . Garrison Access . | . . . . Terminal Hacks 8 | . 1 2 5 Record 4 | . . . 4 Part Schematic 1 | . . 1 . Branch Access Points 1 | . 1 . . Zone Layout 1 | . . 1 . EX-Prototype ID Bank 1 | . . . 1 Fabricator Hacks . | . . . . Repair Station Hacks . | . . . . Recycling Unit Hacks . | . . . . Scanalyzer . | . . . . Garrison Access Hacks . | . . . . Unauthorized Hacks . | . . . . Terminals . | . . . . Fabricators . | . . . . Repair Stations . | . . . . Recycling Units . | . . . . Scanalyzers . | . . . . Garrison Access . | . . . . Data Cores Recovered 1 | . 1 . . Used 1 | . 1 . . Hacking Detections 3 | . 2 1 . Full Trace Events . | . . . . Feedback Events . | . . . . Feedback Blocked . | . . . . Robot Schematics Acquired . | . . . . Robots Built . | . . . . Matter . | . . . . Time . | . . . . Total Robot Build Rating . | . . . . Part Schematics Acquired 1 | . . 1 . Parts Built . | . . . . Matter . | . . . . Time . | . . . . Total Part Build Rating . | . . . . Parts Repaired . | . . . . Time . | . . . . Parts Recycled . | . . . . Recycled Matter . | . . . . Retrieved Matter . | . . . . Retrieved Components . | . . . . Parts Scanalyzed . | . . . . Part Schematics Acquired . | . . . . Parts Damaged . | . . . . Bothacking | -11 -10 -10 -10 ------------ Run | Scr Mat Min Exi Used RIF Installer . | . . . . Robots Hacked . | . . . . Non-combat . | . . . . Combat . | . . . . Robot Hacks Applied . | . . . . Relay Couplers Released . | . . . . Robots Rewired . | . . . . Allies Hacked . | . . . . Hacks Repelled . | . . . . Allies | -11 -10 -10 -10 -------- Run | Scr Mat Min Exi Total Allies . | . . . . Largest Group . | . . . . Highest-Rated Group . | . . . . Highest-Rated Ally . | . . . . Total Orders . | . . . . Ally Attacks . | . . . . Total Damage . | . . . . Kills . | . . . . Allies Corrupted . | . . . . Allies Melted . | . . . . Intel | -11 -10 -10 -10 ------- Run | Scr Mat Min Exi Robot Analysis Total . | . . . . Derelict Logs Recovered 1 | . . 1 . Drone Launches . | . . . . Drone Recoveries . | . . . . Exploration | -11 -10 -10 -10 ------------- Run | Scr Mat Min Exi Turns Passed 1799 | . 525 519 755 Spaces Moved 1014 | 1 260 266 487 Core . | . . . . Treads . | . . . . Legs 1014 | 1 260 266 487 Wheels . | . . . . Hover . | . . . . Flight . | . . . . Fastest Speed 120 | 120 120 150 150 Average Speed 147 | 120 122 167 150 Slowest Speed 180 | 120 150 180 150 Overloaded Moves . | . . . . Propulsion Burnouts . | . . . . Robots Hopped . | . . . . Cave-ins Triggered . | . . . . Exploration Rate (%) 40 | 2 48 49 61 Regions Visited 3 Branch Regions 2 Pre-discovered Areas 2 | . . 1 1 Known Exits Taken 1 | . 1 . . Unknown Exits Taken 2 | 1 . 1 . Scrap Searched . | . . . . Spaces Dug . | . . . . Terrain Destroyed 21 | . . . 21 Melee . | . . . . Projectile . | . . . . AOE 21 | . . . 21 Actions | -11 -10 -10 -10 --------- Run | Scr Mat Min Exi Total 1183 | . 370 305 508 Wait 25 | . 15 10 . Move 1011 | . 259 265 487 Hop . | . . . . Pick Up 17 | . 7 6 4 Fast Attach 10 | . 7 3 . Attach 7 | . 4 1 2 Detach . | . . . . Swap 4 | . 3 . 1 Drop 17 | . 10 2 5 Fire 86 | . 65 18 3 Melee 3 | . . . 3 Ram . | . . . . Kick . | . . . . Crush . | . . . . Escape Stasis . | . . . . Rewire . | . . . . Trap 3 | . . . 3 Miscellaneous . | . . . . Route ------- -11/Scrapyard -10/Materials (discovered 3 exits: [*Mat] / *Min x2) -10/Mines (discovered 3 exits: [*Mat x2] / *Exi) -10/Exiles History --------- Turn | Location | Event 1 | -11/Scrapyard | Discovered new exit (range 0) 1 | -11/Scrapyard | Entered Materials 233 | -10/Materials | Core integrity fell below 50% 254 | -10/Materials | Lost 4 parts (1p1n2w) 369 | -10/Materials | Discovered new exit (range 15) 393 | -10/Materials | Identified exit to Mines 526 | -10/Materials | Entered Mines 572 | -10/Mines | Discovered new exit (range 16) 649 | -10/Mines | Found a hidden stash of uninstalled traps 650 | -10/Mines | Build established: Mutant 759 | -10/Mines | Discovered new exit (range 9) 946 | -10/Mines | Received a Rocket Launcher from a helpful Derelict 963 | -10/Mines | Learned location of Storage (-8) 1038 | -10/Mines | Deemed a non-threat by the Exiles lab entrance 1039 | -10/Mines | Discovered new exit (range 5) 1045 | -10/Mines | Entered Exiles 1083 | -10/Exiles | Met 8R-AWN 1108 | -10/Exiles | Met EX-HEX 1147 | -10/Exiles | Met EX-BIN 1157 | -10/Exiles | Build established: Scavenger-Mutant 1168 | -10/Exiles | Aligned with FarCom system 1170 | -10/Exiles | Given EX-Vault access code 1206 | -10/Exiles | Opened EX-Vault 1243 | -10/Exiles | Warned to stay clear of 0b10 Research branches 1296 | -10/Exiles | Met EX-DEC 1306 | -10/Exiles | Learned location of Zion (-7) 1660 | -10/Exiles | Found Potential Leg 1663 | -10/Exiles | Found Potential Leg 1670 | -10/Exiles | Found Longsword +1 1787 | -10/Exiles | Attacked by the Exiles 1790 | -10/Exiles | Core integrity fell below 20% 1800 | -10/Exiles | Destroyed by as-36813 with Assembled Heavy Rifle Last Messages --------------- 01787_ EXILES: Hostile robot within lab perimeter. Defensive protocols time, folks! 01787_ HV Slug penetrates Machine. 01787_ Machine disabled. 01787_ Penetrated by HV Slug. 01787_ HV Slug penetrates Wall. 01789_ HV Slug penetrates as-24340. 01789_ as-24340 destroyed. 01789_ HV Slug penetrates as-10935. 01789_ as-10935 suffers critical hit. 01789_ Penetrated by HV Slug. 01789_ HV Slug penetrates Wall. 01792_ Dropped Beam Cannon. 01793_ Imp. Heat Sink destroyed. 01794_ Destroyed Asb. Hover Unit. 01794_ as-25304 destroyed. 01794_ Aluminum Leg destroyed. 01796_ System corrupted: Energy discharge (-57). 01796_ Lgt. Nuclear Core destroyed. 01799_ as-10935 destroyed. Map ----- +----------------------------------------------------+ | """#?????????????????????????????????????????????? | | """#?????????????????????????????????????????????? | | """#?????????????????????????????????????????????? | | """#?????????????????????????????????????????????? | | """#?????????????????????????????????????????????? | | """#?????????????????????????????????????????????? | | """#?????????????????????????????????????????????? | | """#?????????????????????????????????????????????? | | """"?????????????????????????????????????????????? | | """#?????????????????????????????????????????????? | | """??????????????????????????????????????????????? | | #?????????????????????????????????????????????? | | """#?????????????????????????????????????????????? | | ####?????????????????????????????????????????????? | | ?????????????????????????????????????????????????? | | ?????????????????????????????????????????????????? | | ?????????????????????????????????????????????????? | | ##########???????????????????????????????????? | | """""""""##??????????????????????????????????? | | " """ """"##?????????????????????????????????# # | | "" " #???????????????????????????????## # | | " """#???????????????????????????????# | | " "#???????????#####???????????????# | | " "##?????????##"g #??????????????## | | ""###???????#" * #?????????????## #? | | """#??????## @ ##????????????# #? | | "#????# ###????????### #?? | | ##??# ########## #?? | | ##?# a #""""## #??? | | ## % * ##?? | | # * #?? | | ### ##? | | ""#?#"""""#### ## | | """##?#######??#### * | | ####??????????????##### | | ??????????????????????### | | " ??????????????????????????### | | """ ^ ^^""#?????????????????????????????### | | ""#" "##??????????????????????????????#" | | """##"""""""##???????????????????????????????#### | | """###########???????????????????????????????????# | | ####?????????????????????????????????????????????# | | ?????????????????????????????????????????????????? | | ?????????????????????????????????????????????????? | | ?????????????????????????????????????????????????? | | ?????????????????????????????????????????????????? | | ?????????????????????????????????????????????????? | | ?????????????????????????????????????????????????? | | ?????????????????????????????????????????????????? | | ?????????????????????????????????????????????????? | +----------------------------------------------------+ Best States ------------- Heat Dissipation 39 Energy Generation 14 Energy Capacity 250 Matter Stores 300 Matter Capacity 300 Sight Range 16 Terrain Scan Density 10 Evasion (%) 40 Item Schematics ----------------- Lrg. Storage Unit | -10/Mines | Hacked Robot Schematics ------------------ None Fabricated ------------ Nothing Alien Tech Used ----------------- None Achievements -------------- None Challenges ------------ None Game ------ Seed PulseSpectralManipulator Manual? 0 Play Time 00:13:53 Cumulative 284.8 hours Start 2020.02.08 @ 23:20:48 End 2020.02.08 @ 23:31:34 Sessions 1 Manual Loads 0 Difficulty Rogue Special Mode None Game No. 314 Rogue 314 Adventurer 0 Explorer 0 Win Type - Total 26 Types 16/3/1/1/2/0/3 Lore% 91 Gallery% 86 Achievement% 76 Wizard Run 0 Options --------- ASCII 0 Keyboard 0 Movement Arrows Keybinds 0 Fullscreen 1 Font 18/SmallcapsGlow Map View 76x50 Tactical HUD 1 Map Filters NONE Filters NONE Steam 1 RUN: af6e3c35-c26d-4533-ab36-2b72b7ad1b7f